fUST/lending_fUST_20250606
["ID","MTS","AMOUNT","RATE_DAILY","PERIOD"]
[364621664,1749166239721,-440.0,0.00021787,2]
[364621666,1749166239730,-440.0,0.00021788,2]
[364621668,1749166239739,-1049.78675878,0.00021853,2]
[364621670,1749166239749,-1000.63074531,0.00021866,6]
[364621672,1749166239758,-440.0,0.00021917,2]
[364621674,1749166239769,-1123.68943109,0.0002194,2]
[364621676,1749166239778,-1000.63074531,0.00022003,6]
[364621678,1749166239788,-440.0,0.0002206,2]
[364621680,1749166239798,-440.0,0.0002206,2]
[364621682,1749166239807,-440.0,0.0002206,2]
[364621684,1749166239816,-440.0,0.0002206,2]
[364621686,1749166239826,-440.0,0.0002206,2]
[364621688,1749166239835,-440.0,0.0002206,2]
[364621690,1749166239847,-440.0,0.0002206,2]
[364621692,1749166239856,-440.0,0.0002206,2]
[364621694,1749166239866,-440.0,0.0002206,2]
[364621696,1749166239875,-447.42,0.0002206,2]
[364621698,1749166239885,-440.0,0.0002206,2]
[364621700,1749166239895,-440.0,0.0002206,2]
[364621702,1749166239904,-440.0,0.0002206,2]
[364621704,1749166239914,-440.0,0.0002206,2]
[364621706,1749166239923,-440.0,0.00022061,2]
[364621708,1749166239933,-440.0,0.00022061,2]
[364621710,1749166239943,-440.0,0.00022061,2]
[364621712,1749166239952,-440.0,0.00022061,2]
[364621714,1749166239962,-440.0,0.00022061,2]
[364621716,1749166239972,-440.0,0.00022061,2]
[364621718,1749166239984,-440.0,0.00022061,2]
[364621720,1749166239993,-565.09,0.00022062,2]
[364621722,1749166240003,-1000.63074531,0.00022141,6]
[364621724,1749166240012,-7375.18665516,0.000222,69]
[364621726,1749166240021,-7375.18665513,0.000222,69]
[364621728,1749166240031,-7375.18665513,0.000222,69]
[364621730,1749166240041,-1000.63074531,0.00022279,6]
[364621732,1749166240050,-963.71,0.000223,7]
[364621734,1749166240060,-440.0,0.00022334,2]
[364621736,1749166240071,-440.0,0.00022334,2]
[364621738,1749166240082,-440.0,0.00022334,2]
[364621740,1749166240093,-440.0,0.00022334,2]
[364621742,1749166240102,-440.0,0.00022334,2]
[364621745,1749166240111,-440.0,0.00022334,2]
[364621747,1749166240121,-440.0,0.00022334,2]
[364621749,1749166240130,-440.0,0.00022334,2]
[364621751,1749166240140,-440.0,0.00022334,2]
[364621753,1749166240150,-447.42,0.00022334,2]
[364621755,1749166240160,-553.36,0.00022334,2]
[364621757,1749166240169,-440.0,0.00022334,2]
[364621759,1749166240178,-440.0,0.00022334,2]
[364621761,1749166240188,-440.0,0.00022334,2]
[364621763,1749166240198,-440.0,0.00022335,2]
[364621765,1749166240207,-440.0,0.00022335,2]
[364621768,1749166240225,-262.99,0.00022335,2]
[364621770,1749166240237,-440.0,0.00022335,2]
[364621772,1749166240246,-197.49,0.00022335,2]
[364621774,1749166240256,-440.0,0.00022335,2]
[364621776,1749166240265,-440.0,0.00022335,2]
[364621779,1749166240276,-2325.5,0.000224,7]
[364621781,1749166240285,-1000.63074531,0.00022417,7]
[364621783,1749166240296,-422.24054609,0.00022455,2]
[364621785,1749166240305,-207.4,0.00022475,2]
[364621787,1749166240315,-151.0,0.00022475,2]
[364621789,1749166240325,-44686.3045641,0.000225,60]
[364621802,1749166240439,-2206.42418607,0.000225,60]
[364621804,1749166240451,-1073.2,0.000225,60]
[364621826,1749166240650,-440.0,0.00019868,2]
[364621828,1749166240662,-440.0,0.00019869,2]
[364621830,1749166240671,-440.0,0.00019869,2]
[364621832,1749166240681,-440.0,0.00019869,2]
[364621834,1749166240690,-440.0,0.00020142,2]
[364621836,1749166240700,-440.0,0.00020143,2]
[364621838,1749166240709,-440.0,0.00020143,2]
[364621840,1749166240718,-440.0,0.00020416,2]
[364621842,1749166240728,-527.8,0.00020417,2]
[364621844,1749166240737,-440.0,0.0002069,2]
[364621846,1749166240746,-160.0,0.00020828,2]
[364621848,1749166240756,-12480.85512572,0.000225,60]
[364621850,1749166240766,-1000.63074531,0.00022555,7]
[364621852,1749166240775,-440.0,0.00022608,2]
[364621854,1749166240784,-440.0,0.00022608,2]
[364621856,1749166240794,-440.0,0.00022608,2]
[364621858,1749166240804,-381.37,0.00022608,2]
[364621860,1749166240813,-440.0,0.00022608,2]
[364621862,1749166240823,-440.0,0.00022608,2]
[364621864,1749166240832,-440.0,0.00022608,2]
[364621866,1749166240842,-447.42,0.00022608,2]
[364621868,1749166240851,-440.0,0.00022608,2]
[364621870,1749166240860,-440.0,0.00022608,2]
[364621872,1749166240870,-440.0,0.00022608,2]
[364621874,1749166240880,-495.33,0.00022609,2]
[364621876,1749166240890,-440.0,0.00022609,2]
[364621878,1749166240900,-488.8,0.00022609,2]
[364621880,1749166240910,-350.66,0.00022609,2]
[364621882,1749166240919,-204.48,0.00022609,2]
[364621884,1749166240928,-500.0,0.0002268,2]
[364621886,1749166240938,-1000.63074531,0.00022693,7]
[364621888,1749166240947,-422.24054607,0.00022777,2]
[364621890,1749166240957,-1000.63074531,0.00022831,8]
[364621892,1749166240966,-350.0,0.00022882,2]
[364621894,1749166240976,-440.0,0.00022882,2]
[364621895,1749166240985,-156.88,0.00022882,2]
[364621896,1749166240995,-440.0,0.00022882,2]
[364621897,1749166241004,-440.0,0.00022882,2]
[364621898,1749166241013,-440.0,0.00022882,2]
[364621899,1749166241023,-447.42,0.00022882,2]
[364621900,1749166241033,-440.0,0.00022882,2]
[364621901,1749166241043,-440.0,0.00022882,2]
[364621902,1749166241052,-440.0,0.00022882,2]
[364621904,1749166241062,-440.0,0.00022883,2]
[364621906,1749166241073,-1000.63074531,0.00022969,8]
[364621908,1749166241083,-590.25197022,0.00023,20]
[364621910,1749166241094,-7375.18665513,0.00023092,73]
[364621913,1749166241107,-422.24054607,0.000231,2]
[364621915,1749166241118,-1000.63074531,0.00023107,8]
[364621917,1749166241128,-440.0,0.00023156,2]
[364621919,1749166241138,-440.0,0.00023156,2]
[364621921,1749166241147,-440.0,0.00023156,2]
[364621923,1749166241158,-447.42,0.00023156,2]
[364621925,1749166241167,-440.0,0.00023156,2]
[364621927,1749166241177,-440.0,0.00023156,2]
[364621929,1749166241187,-440.0,0.00023156,2]
[364621931,1749166241196,-440.61,0.00023157,2]
[364621933,1749166241206,-1000.63074531,0.00023245,8]
[364621935,1749166241215,-600.0,0.00023348,2]
[364621937,1749166241225,-1000.63074531,0.00023383,9]
[364621940,1749166241235,-422.24054607,0.00023422,2]
[364621942,1749166241244,-440.0,0.0002343,2]
[364621944,1749166241253,-440.0,0.0002343,2]
[364621945,1749166241263,-440.0,0.0002343,2]
[364621947,1749166241272,-447.42,0.0002343,2]
[364621950,1749166241282,-440.0,0.0002343,2]
[364621952,1749166241292,-440.0,0.0002343,2]
[364621953,1749166241301,-440.0,0.0002343,2]
[364621955,1749166241311,-2902.11898737,0.000235,2]
[364621958,1749166241320,-47440.32521249,0.000235,2]
[364621960,1749166241330,-213.84497651,0.000235,2]
[364621962,1749166241341,-1000.63074531,0.00023521,9]
[364621964,1749166241351,-330.0,0.00023562,2]
[364621966,1749166241361,-877.50976417,0.00023591,2]
[364621968,1749166241371,-26658.68236398,0.00023613,7]
[364621970,1749166241380,-1000.63074531,0.00023659,9]
[364621972,1749166241390,-440.0,0.00023704,2]
[364621974,1749166241399,-440.0,0.00023704,2]
[364621975,1749166241409,-440.0,0.00023704,2]
[364621978,1749166241419,-447.42,0.00023704,2]
[364621980,1749166241428,-440.0,0.00023704,2]
[364621982,1749166241439,-440.0,0.00023704,2]
[364621984,1749166241448,-440.0,0.00023704,2]
[364621986,1749166241458,-422.24054607,0.00023744,2]
[364621988,1749166241467,-1000.63074531,0.00023797,9]
[364621990,1749166241477,-500.0,0.00023799,2]
[364621992,1749166241487,-500.0,0.00023799,2]
[364621994,1749166241496,-500.0,0.00023799,2]
[364621996,1749166241506,-333.5656197,0.00023799,2]
[364621998,1749166241517,-500.0,0.00023799,2]
[364622000,1749166241526,-500.0,0.00023799,2]
[364622002,1749166241536,-963.71,0.000238,7]
[364622004,1749166241546,-2325.5,0.000238,7]
[364622006,1749166241556,-20146.807456,0.000238,3]
[364622008,1749166241570,-10180.0,0.000238,3]
[364622011,1749166241592,-440.0,0.00020417,2]
[364622013,1749166241602,-1588524.70562283,0.000238,3]
[364622016,1749166241612,-160.0,0.000238,3]
[364622030,1749166241740,-215.0738,0.00023844,2]
[364622032,1749166241750,-430.0,0.00023863,2]
[364622034,1749166241760,-500.0,0.00023863,2]
[364622036,1749166241770,-1000.63074531,0.00023934,10]
[364622038,1749166241779,-440.0,0.00023978,2]
[364622040,1749166241788,-440.0,0.00023978,2]
[364622042,1749166241798,-440.0,0.00023978,2]
[364622044,1749166241808,-447.42,0.00023978,2]
[364622046,1749166241817,-440.0,0.00023978,2]
[364622048,1749166241827,-346.24,0.00023978,2]
[364622050,1749166241837,-175.81,0.0002399,10]
[364622052,1749166241848,-879.09,0.0002399,10]
[364622054,1749166241857,-10549.7246697,0.00023995,2]
[364622056,1749166241867,-500.0,0.00023999,2]
[364622058,1749166241877,-22501.2898832,0.00024,2]
[364622060,1749166241886,-151.0,0.00024,5]
[364622062,1749166241896,-1000.63074531,0.00024072,10]
[364622064,1749166241906,-800.0,0.0002409,2]
[364622066,1749166241916,-1918.63285145,0.0002412,7]
[364622068,1749166241925,-1141.43020283,0.00024179,30]
[364622070,1749166241934,-500.0,0.00024179,2]
[364622072,1749166241944,-160.0,0.00024179,2]
[364622074,1749166241953,-6688.99,0.0002418,7]
[364622076,1749166241963,-5899.89,0.0002418,5]
[364622078,1749166241972,-5593.49731012,0.0002418,15]
[364622080,1749166241982,-7375.18665513,0.000242,77]
[364622082,1749166241992,-1000.63074531,0.0002421,10]
[364622084,1749166242004,-440.0,0.00024252,2]
[364622087,1749166242014,-440.0,0.00024252,2]
[364622089,1749166242023,-440.0,0.00024252,2]
[364622090,1749166242032,-447.42,0.00024252,2]
[364622092,1749166242042,-440.0,0.00024252,2]
[364622095,1749166242052,-476.9834559,0.00024273,2]
[364622097,1749166242060,-500.0,0.00024273,2]
[364622098,1749166242070,-500.0,0.00024273,2]
[364622100,1749166242082,-500.0,0.00024273,2]
[364622102,1749166242093,-500.0,0.00024273,2]
[364622104,1749166242102,-600.0,0.00024273,2]
[364622106,1749166242112,-2000.0,0.00024273,2]
[364622108,1749166242123,-2000.0,0.00024273,2]
[364622111,1749166242132,-2000.0,0.00024273,2]
[364622112,1749166242142,-2000.0,0.00024273,2]
[364622115,1749166242151,-2000.0,0.00024273,2]
[364622117,1749166242161,-2000.0,0.00024273,2]
[364622119,1749166242171,-2000.0,0.00024273,2]
[364622120,1749166242180,-2000.0,0.00024273,2]
[364622122,1749166242190,-2000.0,0.00024273,2]
[364622125,1749166242201,-2000.0,0.00024273,2]
[364622126,1749166242210,-2000.0,0.00024273,2]
[364622129,1749166242220,-2000.0,0.00024273,2]
[364622131,1749166242229,-665.35522838,0.00024273,2]
[364622133,1749166242239,-158.5442955,0.00024274,2]
[364622135,1749166242249,-364.5107659,0.00024274,2]
[364622137,1749166242259,-151.0,0.00024287,7]
[364622139,1749166242268,-151.0,0.00024287,7]
[364622141,1749166242277,-151.0,0.00024287,7]
[364622143,1749166242287,-151.0,0.00024287,7]
[364622145,1749166242296,-207.845236,0.00024287,7]
[364622147,1749166242306,-155.496671,0.00024287,7]
[364622149,1749166242317,-151.0,0.00024287,7]
[364622151,1749166242326,-151.0,0.00024287,7]
[364622153,1749166242336,-151.0,0.00024287,7]
[364622155,1749166242347,-200.0,0.00024287,7]
[364622157,1749166242356,-198.447798,0.00024287,7]
[364622159,1749166242366,-151.0,0.00024287,7]
[364622161,1749166242375,-161.957282,0.00024287,7]
[364622163,1749166242384,-153.159294,0.00024287,7]
[364622165,1749166242395,-151.0,0.00024287,7]
[364622167,1749166242404,-151.0,0.00024287,7]
[364622169,1749166242413,-297.136932,0.00024287,7]
[364622171,1749166242422,-151.0,0.00024287,7]
[364622173,1749166242432,-274.376802,0.00024287,7]
[364622175,1749166242442,-274.376802,0.00024287,7]
[364622177,1749166242452,-274.376802,0.00024287,7]
[364622179,1749166242461,-274.376802,0.00024287,7]
[364622181,1749166242471,-274.376802,0.00024287,7]
[364622183,1749166242480,-274.376802,0.00024287,7]
[364622184,1749166242490,-274.376802,0.00024287,7]
[364622187,1749166242499,-274.376802,0.00024287,7]
[364622189,1749166242509,-274.376802,0.00024287,7]
[364622191,1749166242520,-274.376802,0.00024287,7]
[364622193,1749166242529,-274.376802,0.00024287,7]
[364622195,1749166242541,-274.376802,0.00024287,7]
[364622197,1749166242551,-274.376802,0.00024287,7]
[364622199,1749166242560,-274.376802,0.00024287,7]
[364622201,1749166242570,-274.376802,0.00024287,7]
[364622203,1749166242580,-274.376802,0.00024287,7]
[364622205,1749166242589,-274.376802,0.00024287,7]
[364622207,1749166242602,-274.376802,0.00024287,7]
[364622209,1749166242611,-274.376802,0.00024287,7]
[364622211,1749166242621,-274.376806,0.00024287,7]
[364622213,1749166242631,-457.183155,0.00024287,7]
[364622215,1749166242641,-457.183155,0.00024287,7]
[364622217,1749166242650,-457.183155,0.00024287,7]
[364622219,1749166242660,-457.183155,0.00024287,7]
[364622221,1749166242669,-457.183155,0.00024287,7]
[364622223,1749166242679,-457.183155,0.00024287,7]
[364622225,1749166242689,-457.183155,0.00024287,7]
[364622227,1749166242699,-457.183155,0.00024287,7]
[364622229,1749166242708,-457.183155,0.00024287,7]
[364622231,1749166242718,-457.183155,0.00024287,7]
[364622233,1749166242727,-457.183155,0.00024287,7]
[364622235,1749166242737,-457.183155,0.00024287,7]
[364622237,1749166242747,-457.183155,0.00024287,7]
[364622239,1749166242756,-457.183155,0.00024287,7]
[364622241,1749166242766,-457.183155,0.00024287,7]
[364622243,1749166242775,-457.183155,0.00024287,7]
[364622245,1749166242785,-457.183155,0.00024287,7]
[364622247,1749166242795,-457.183155,0.00024287,7]
[364622249,1749166242805,-457.183155,0.00024287,7]
[364622251,1749166242815,-457.183161,0.00024287,7]
[364622253,1749166242826,-151.0,0.00024289,7]
[364622255,1749166242836,-151.0,0.00024289,7]
[364622257,1749166242848,-151.0,0.00024289,7]
[364622259,1749166242859,-151.0,0.00024289,7]
[364622261,1749166242869,-242.976952,0.00024289,7]
[364622263,1749166242879,-151.0,0.00024289,7]
[364622265,1749166242888,-151.0,0.00024289,7]
[364622267,1749166242897,-151.0,0.00024289,7]
[364622269,1749166242907,-151.0,0.00024289,7]
[364622271,1749166242918,-244.280696,0.00024289,7]
[364622273,1749166242928,-151.0,0.00024289,7]
[364622275,1749166242938,-151.0,0.00024289,7]
[364622277,1749166242948,-453.755943,0.00024289,3]
[364622279,1749166242957,-179.833783,0.00024289,7]
[364622281,1749166242967,-179.833783,0.00024289,7]
[364622283,1749166242977,-179.833783,0.00024289,7]
[364622285,1749166242986,-179.833783,0.00024289,7]
[364622287,1749166242996,-179.833783,0.00024289,7]
[364622289,1749166243005,-179.833783,0.00024289,7]
[364622291,1749166243014,-179.833783,0.00024289,7]
[364622293,1749166243024,-179.833783,0.00024289,7]
[364622295,1749166243033,-179.833783,0.00024289,7]
[364622297,1749166243043,-179.833783,0.00024289,7]
[364622299,1749166243052,-179.833783,0.00024289,7]
[364622301,1749166243062,-179.833783,0.00024289,7]
[364622303,1749166243074,-179.833783,0.00024289,7]
[364622305,1749166243085,-179.833783,0.00024289,7]
[364622307,1749166243095,-179.833783,0.00024289,7]
[364622309,1749166243104,-179.833783,0.00024289,7]
[364622311,1749166243115,-179.833783,0.00024289,7]
[364622313,1749166243125,-179.833783,0.00024289,7]
[364622315,1749166243134,-179.833783,0.00024289,7]
[364622317,1749166243144,-179.833789,0.00024289,7]
[364622319,1749166243154,-151.0,0.00024289,7]
[364622321,1749166243163,-151.0,0.00024289,7]
[364622323,1749166243173,-151.0,0.00024289,7]
[364622325,1749166243182,-151.0,0.00024289,7]
[364622328,1749166243192,-151.0,0.00024289,7]
[364622329,1749166243201,-151.0,0.00024289,7]
[364622332,1749166243211,-151.0,0.00024289,7]
[364622333,1749166243221,-151.0,0.00024289,7]
[364622336,1749166243231,-151.0,0.00024289,7]
[364622338,1749166243240,-151.0,0.00024289,7]
[364622340,1749166243250,-151.0,0.00024289,7]
[364622342,1749166243259,-151.0,0.00024289,7]
[364622345,1749166243269,-268.666662,0.00024289,7]
[364622347,1749166243278,-151.0,0.00024289,7]
[364622349,1749166243287,-151.0,0.00024289,7]
[364622352,1749166243296,-151.0,0.00024289,7]
[364622356,1749166243306,-151.0,0.00024289,7]
[364622359,1749166243315,-151.0,0.00024289,7]
[364622362,1749166243324,-159.80008,0.00024289,7]
[364622365,1749166243334,-150.0,0.00024293,2]
[364622368,1749166243343,-2195.0,0.00024295,2]
[364622371,1749166243353,-709.0,0.00024295,2]
[364622374,1749166243362,-405.0,0.00024295,2]
[364622377,1749166243371,-962.0,0.00024295,2]
[364622380,1749166243381,-151.0,0.00024299,7]
[364622383,1749166243390,-168.081542,0.00024299,7]
[364622386,1749166243399,-151.0,0.00024299,7]
[364622389,1749166243409,-352.863214,0.00024299,7]
[364622392,1749166243418,-352.863214,0.00024299,7]
[364622394,1749166243428,-352.863214,0.00024299,7]
[364622397,1749166243437,-352.863214,0.00024299,7]
[364622400,1749166243447,-352.863214,0.00024299,7]
[364622403,1749166243457,-352.863214,0.00024299,7]
[364622406,1749166243467,-352.863214,0.00024299,7]
[364622409,1749166243477,-352.863214,0.00024299,7]
[364622412,1749166243487,-352.863214,0.00024299,7]
[364622415,1749166243497,-352.863214,0.00024299,7]
[364622418,1749166243506,-352.863214,0.00024299,7]
[364622421,1749166243517,-352.863214,0.00024299,7]
[364622424,1749166243526,-352.863214,0.00024299,7]
[364622427,1749166243535,-352.863214,0.00024299,7]
[364622430,1749166243545,-352.863214,0.00024299,7]
[364622433,1749166243555,-352.863214,0.00024299,7]
[364622436,1749166243564,-352.863214,0.00024299,7]
[364622439,1749166243573,-352.863214,0.00024299,7]
[364622442,1749166243582,-352.863214,0.00024299,7]
[364622444,1749166243592,-352.863218,0.00024299,7]
[364622447,1749166243602,-151.0,0.00024299,7]
[364622450,1749166243612,-186.0,0.000243,31]
[364622453,1749166243622,-625.7647201,0.000243,35]
[364622456,1749166243631,-1182.0,0.000243,31]
[364622459,1749166243641,-1183.0,0.000243,31]
[364622461,1749166243651,-1182.0,0.000243,31]
[364622463,1749166243660,-1182.0,0.000243,31]
[364622465,1749166243670,-314.38330117,0.000243,2]
[364622467,1749166243679,-147414.70137836,0.000243,30]
[364622469,1749166243689,-5144.64578978,0.000243,30]
[364622471,1749166243699,-6101.61122724,0.000243,30]
[364622473,1749166243708,-50959.3731044,0.000243,30]
[364622475,1749166243717,-20894.72160433,0.000243,30]
[364622477,1749166243727,-17792.65844565,0.000243,30]
[364622479,1749166243736,-34299.66129244,0.000243,30]
[364622481,1749166243746,-29691.18764476,0.000243,30]
[364622483,1749166243755,-30237.64406244,0.000243,30]
[364622485,1749166243764,-1582.13560688,0.000243,30]
[364622487,1749166243773,-1504.999999,0.000243,2]
[364622489,1749166243783,-11632.60648,0.000243,35]
[364622490,1749166243792,-2000.0,0.000243,30]
[364622492,1749166243801,-2000.0,0.000243,30]
[364622494,1749166243810,-126677.93707687,0.000243,32]
[364622497,1749166243824,-3712.61691847,0.000243,32]
[364622499,1749166243833,-75254.0,0.000243,32]
[364622501,1749166243843,-150.0,0.000243,31]
[364622503,1749166243853,-154.0,0.000243,31]
[364622505,1749166243862,-308.0,0.000243,31]
[364622507,1749166243871,-615.0,0.000243,31]
[364622509,1749166243881,-1230.0,0.000243,31]
[364622510,1749166243890,-1554.0,0.000243,31]
[364622512,1749166243899,-2394.0,0.000243,31]
[364622514,1749166243908,-2460.0,0.000243,31]
[364622516,1749166243917,-3800.0,0.000243,31]
[364622518,1749166243926,-100000.0,0.000243,30]
[364622520,1749166243935,-100000.0,0.000243,30]
[364622522,1749166243944,-100000.0,0.000243,30]
[364622524,1749166243954,-31366.4236103,0.000243,35]
[364622526,1749166243963,-273925.45748033,0.000243,32]
[364622528,1749166243972,-646309.85788479,0.000243,30]
[364622530,1749166243982,-1255.88566938,0.000243,30]
[364622532,1749166243990,-596.9763743,0.000243,35]
[364622534,1749166243999,-150.0,0.000243,30]
[364622536,1749166244008,-242019.34315005,0.000243,20]
[364622538,1749166244018,-175.0,0.000243,31]
[364622540,1749166244027,-9554.98224771,0.000243,30]
[364622542,1749166244037,-392085.25326219,0.000243,20]
[364622544,1749166244046,-282672.10658848,0.000243,20]
[364622546,1749166244056,-2000.0,0.000243,30]
[364622548,1749166244065,-2000.0,0.000243,30]
[364622550,1749166244078,-150.0,0.000243,60]
[364622552,1749166244087,-150.0,0.000243,90]
[364622554,1749166244098,-12694.67886049,0.000243,5]
[364622556,1749166244107,-203083.98370704,0.000243,60]
[364622558,1749166244118,-10004.92331005,0.000243,31]
[364622560,1749166244127,-992.25322419,0.000243,60]
[364622562,1749166244137,-3635.51983242,0.000243,60]
[364622563,1749166244146,-1503.92188392,0.000243,15]
[364622565,1749166244155,-10930.96284652,0.000243,60]
[364622568,1749166244165,-530.0,0.000243,2]
[364622569,1749166244174,-749.626637,0.000243,35]
[364622570,1749166244183,-22019.18325392,0.000243,30]
[364622571,1749166244192,-1463020.12312499,0.000243,20]
[364622572,1749166244204,-898.48982295,0.000243,20]
[364622573,1749166244215,-270.13541551,0.000243,20]
[364622574,1749166244319,-8147.60974807,0.000243,20]
[364622575,1749166244330,-271.4,0.000243,20]
[364622638,1749166245408,-440.0,0.00020691,2]
[364622640,1749166245417,-440.0,0.00020965,2]
[364622642,1749166245426,-440.0,0.00021239,2]
[364622644,1749166245436,-487.51798089,0.00021513,2]
[364622654,1749166245481,-440.0,0.00019868,2]
[364622658,1749166245490,-440.0,0.00020142,2]
[364622661,1749166245500,-440.0,0.00020416,2]
[364622663,1749166245509,-440.0,0.0002069,2]
[364622665,1749166245519,-1429.45403235,0.00021513,2]
[364622667,1749166245527,-440.0,0.00021513,2]
[364622669,1749166245536,-440.0,0.00021787,2]
[364622671,1749166245545,-440.0,0.00022061,2]
[364622673,1749166245554,-440.0,0.00022335,2]
[364622675,1749166245563,-571.71,0.00022609,2]
[364622677,1749166245572,-393433.33372076,0.000243,20]
[364622679,1749166245584,-468.942,0.000243,20]
[364622681,1749166245595,-591.33687235,0.000243,20]
[364622800,1749166246705,-351.12705099,0.00019868,2]
[364622802,1749166246714,-5880.10356932,0.000243,20]
[364623797,1749166308083,2000.0,0.00021934,120]
[364623800,1749166370156,199.80661,0.00013699,2]
[364623805,1749166562238,10000.0,0.00021918,60]
[364623807,1749166565921,-164.90024098,0.00019768,2]
[364623808,1749166565943,-300.0,0.00019866,2]
[364623809,1749166565964,-300.0,0.00019866,2]
[364623810,1749166565984,-300.0,0.00019867,2]
[364623811,1749166566006,-300.0,0.00019867,2]
[364623812,1749166566026,-300.0,0.00019867,2]
[364623813,1749166566049,-1200.0,0.00019867,2]
[364623814,1749166566071,-440.0,0.00019868,2]
[364623815,1749166566091,-440.0,0.00019868,2]
[364623816,1749166566112,-440.0,0.00019868,2]
[364623817,1749166566135,-440.0,0.00019868,2]
[364623818,1749166566155,-440.0,0.00019868,2]
[364623819,1749166566178,-440.0,0.00019868,2]
[364623820,1749166566199,-347.8405064,0.00019868,2]
[364623821,1749166566220,-440.0,0.00019868,2]
[364623822,1749166566242,-440.0,0.00019868,2]
[364623823,1749166566264,-410.0,0.00019868,2]
[364623824,1749166566285,-440.0,0.00019868,2]
[364623825,1749166566307,-392.77,0.00019868,2]
[364623826,1749166566330,-440.0,0.00019868,2]
[364623827,1749166566350,-360.0,0.00019868,2]
[364623828,1749166566371,-440.0,0.00019868,2]
[364623829,1749166566391,-410.0,0.00019868,2]
[364623830,1749166566415,-440.0,0.00019868,2]
[364623831,1749166566439,-440.0,0.00019868,2]
[364623832,1749166566459,-440.0,0.00019868,2]
[364623833,1749166566481,-420.70962939,0.00019868,2]
[364623834,1749166566504,-440.0,0.00019868,2]
[364623835,1749166566528,-440.0,0.00019868,2]
[364623836,1749166566549,-440.0,0.00019868,2]
[364623837,1749166566570,-440.0,0.00019868,2]
[364623838,1749166566591,-440.0,0.00019868,2]
[364623839,1749166566627,-440.0,0.00019868,2]
[364623840,1749166566654,-440.0,0.00019868,2]
[364623841,1749166566678,-440.0,0.00019868,2]
[364623842,1749166566703,-440.0,0.00019868,2]
[364623843,1749166566727,-440.0,0.00019868,2]
[364623844,1749166566750,-440.0,0.00019868,2]
[364623845,1749166566773,-440.0,0.00019868,2]
[364623846,1749166566795,-440.0,0.00019868,2]
[364623847,1749166566817,-440.0,0.00019868,2]
[364623848,1749166566840,-440.0,0.00019868,2]
[364623849,1749166566864,-440.0,0.00019868,2]
[364623850,1749166566887,-440.0,0.00019868,2]
[364623851,1749166566909,-440.0,0.00019868,2]
[364623852,1749166566933,-440.0,0.00019868,2]
[364623853,1749166566955,-440.0,0.00019868,2]
[364623854,1749166566977,-440.0,0.00019868,2]
[364623855,1749166566998,-440.0,0.00019868,2]
[364623856,1749166567024,-440.0,0.00019868,2]
[364623857,1749166567045,-430.0,0.00019868,2]
[364623858,1749166567067,-440.0,0.00019868,2]
[364623859,1749166567089,-440.0,0.00019868,2]
[364623860,1749166567112,-440.0,0.00019868,2]
[364623861,1749166567136,-440.0,0.00019868,2]
[364623862,1749166567160,-440.0,0.00019868,2]
[364623863,1749166567184,-440.0,0.00019868,2]
[364623864,1749166567207,-440.0,0.00019868,2]